fUSD/lending_fUSD_20240517
["ID","MTS","AMOUNT","RATE_DAILY","PERIOD"]
[327250256,1715927439318,-418.31,0.000111,2]
[327250257,1715927439328,-1427.55,0.000111,2]
[327250258,1715927439338,-163.35,0.000111,2]
[327250261,1715927439347,-415.3,0.000111,2]
[327250263,1715927439357,-150.0,0.000111,2]
[327250265,1715927439368,-351.62,0.000111,2]
[327250267,1715927439378,-499.99,0.00011218,2]
[327250269,1715927439388,-198.81179968,0.00011401,2]
[327250271,1715927439398,-155.23104107,0.00011417,2]
[327250273,1715927439409,-332.75841993,0.00011417,2]
[327250275,1715927439418,-1770.12134,0.00011419,2]
[327250277,1715927439428,-2000.0,0.00011419,2]
[327250279,1715927439438,-200.0,0.00011419,2]
[327250281,1715927439448,-78011.47435632,0.00011419,2]
[327250283,1715927439461,-106024.28152695,0.00011419,2]
[327250285,1715927439473,-1207.51860336,0.00011419,2]
[327250329,1715927440226,-328.70063115,0.00011419,2]
[327250330,1715927440380,-150430.93513958,0.00011419,2]
[327250440,1715927446132,-154.09227676,0.00011401,2]
[327250442,1715927446141,-2152.79111102,0.00011419,2]
[327250444,1715927446153,-1000.0,0.00011419,2]
[327250452,1715927446288,-4654.61803241,0.00011419,2]
[327250456,1715927826568,150.0,8.219e-05,2]
[327250457,1715927826591,150.0,8.219e-05,2]
[327250458,1715927826613,150.0,8.219e-05,2]
[327250459,1715927826634,150.0,8.219e-05,2]
[327250460,1715927826656,150.0,8.219e-05,2]
[327250461,1715927826678,150.0,8.219e-05,2]
[327250462,1715927826703,1076.33,8.219e-05,2]
[327250464,1715927878362,150.0,8.219e-05,2]
[327250465,1715927878387,5.0,8.219e-05,2]
[327250466,1715927885636,155.0,8.219e-05,2]
[327250467,1715927891174,81.64606139,8.219e-05,2]
[327250468,1715927891195,73.35393861,8.219e-05,2]
[327250469,1715927892364,155.0,8.219e-05,2]
[327250470,1715927903583,155.92720636,8.219e-05,2]
[327250471,1715927907104,155.11443778,8.219e-05,2]
[327250472,1715927912358,155.0,8.219e-05,2]
[327250473,1715927930368,155.0,8.219e-05,2]
[327250474,1715927952358,155.0,8.219e-05,2]
[327250475,1715927972362,156.68346991,8.219e-05,2]
[327250476,1715927985118,265.79331966,8.219e-05,2]
[327250479,1715928001754,173.46603552,8.219e-05,2]
[327250481,1715928015695,297.29903326,8.219e-05,2]
[327250482,1715928029863,201.09891614,8.178e-05,2]
[327250483,1715928031218,155.0,8.219e-05,2]
[327250484,1715928037269,289.1440258,8.219e-05,2]
[327250485,1715928045225,286.18331827,8.219e-05,2]
[327250486,1715928055226,289.1440258,8.219e-05,2]
[327250489,1715928081229,289.1440258,8.219e-05,2]
[327250490,1715928097236,289.1440258,8.219e-05,2]
[327250491,1715928121236,289.1440258,8.219e-05,2]
[327250492,1715928139235,289.1440258,8.219e-05,2]
[327250493,1715928148791,292.54880423,8.219e-05,2]
[327250494,1715928155241,289.1440258,8.219e-05,2]
[327250495,1715928166924,292.25348331,8.219e-05,2]
[327250496,1715928173294,289.1440258,8.219e-05,2]
[327250497,1715928186723,292.26886953,8.219e-05,2]
[327250498,1715928193236,289.74273275,8.219e-05,2]
[327250499,1715928196055,303.18528637,8.219e-05,2]
[327250500,1715928206722,292.26886953,8.219e-05,2]
[327250501,1715928215989,346.08357273,8.219e-05,2]
[327250502,1715928217241,349.34844161,8.219e-05,2]
[327250503,1715928224723,292.26886953,8.219e-05,2]
[327250504,1715928231877,346.08357273,8.219e-05,2]
[327250505,1715928235503,362.06082073,8.219e-05,2]
[327250506,1715928246720,292.20732465,8.219e-05,2]
[327250507,1715928249443,362.06082073,8.219e-05,2]
[327250508,1715928251878,369.32801966,8.219e-05,2]
[327250509,1715928271445,362.06082073,8.219e-05,2]
[327250510,1715928291446,362.06082073,8.219e-05,2]
[327250511,1715928297802,138299.77414417,0.0002308,120]
[327250513,1715928371584,1926.25,8.219e-05,2]
[327250516,1715928431962,362.06082073,8.219e-05,2]
[327250517,1715928442849,366.62421117,8.219e-05,2]
[327250518,1715928447969,362.06082073,8.219e-05,2]
[327250519,1715928460801,366.62421117,8.219e-05,2]
[327250520,1715928471955,362.06082073,8.219e-05,2]
[327250521,1715928478810,366.62421117,8.219e-05,2]
[327250522,1715928489960,362.06082073,8.219e-05,2]
[327250523,1715928494814,366.62421117,8.219e-05,2]
[327250524,1715928514817,366.62421117,8.219e-05,2]
[327250525,1715928515972,362.27224235,8.219e-05,2]
[327250526,1715928534817,367.91122186,8.219e-05,2]
[327250527,1715928540618,483.02896825,8.219e-05,2]
[327250537,1715928583277,289.1440258,8.219e-05,2]
[327250538,1715928588042,561.51075453,8.219e-05,2]
[327250541,1715928601516,265.79319883,8.219e-05,2]
[327250563,1715928634545,-155.0,9.517e-05,2]
[327250564,1715928634555,-778.0146266,9.518e-05,2]
[327250565,1715928634565,-3007.58916285,9.519e-05,2]
[327250566,1715928634574,-1500.0,9.522e-05,2]
[327250567,1715928634583,-6414.59397985,9.526e-05,2]
[327250568,1715928634595,-768.11279699,9.526e-05,2]
[327250569,1715928634609,-667.3003634,9.526e-05,2]
[327250570,1715928634620,-3135.40092154,9.526e-05,2]
[327250571,1715928634631,-9166.2449902,9.526e-05,2]
[327250572,1715928634642,-2183.7396,9.526e-05,2]
[327250573,1715928634654,-1564.60734802,9.526e-05,2]
[327250574,1715928634663,-500.0,9.533e-05,2]
[327250575,1715928634672,-150.0,9.582e-05,2]
[327250576,1715928634682,-917.81122813,9.585e-05,2]
[327250577,1715928634693,-1974.8225,9.585e-05,2]
[327250578,1715928634834,-8965.14627187,9.585e-05,2]
[327250580,1715928634844,-189.48,9.595e-05,2]
[327250582,1715928634855,-482.7,9.612e-05,2]
[327250584,1715928634864,-250.0,9.638e-05,2]
[327250586,1715928634873,-484.6,9.649e-05,2]
[327250588,1715928634883,-499.99,9.67e-05,2]
[327250590,1715928634892,-168.3,9.673e-05,2]
[327250592,1715928634901,-1125.27,9.675e-05,2]
[327250594,1715928634911,-427.46913303,9.687e-05,2]
[327250596,1715928634925,-212.53086697,9.687e-05,2]
[327250598,1715928634935,-215.06,9.697e-05,2]
[327250600,1715928634945,-250.0,9.709e-05,2]
[327250602,1715928634954,-168.3,9.757e-05,2]
[327250604,1715928634963,-1082.12,9.8e-05,2]
[327250606,1715928634973,-150.0,9.808e-05,2]
[327250608,1715928634982,-1104.77,9.808e-05,2]
[327250610,1715928634992,-168.3,9.841e-05,2]
[327250612,1715928635002,-150.22,9.917e-05,2]
[327250614,1715928635011,-311.54,9.925e-05,2]
[327250616,1715928635021,-168.3,9.925e-05,2]
[327250618,1715928635031,-150.22,9.942e-05,2]
[327250620,1715928635040,-150.22,9.967e-05,2]
[327250622,1715928635049,-168.3,0.00010009,2]
[327250625,1715928635059,-20286.63443243,0.00010022,2]
[327250627,1715928635069,-168.67,0.0001005,2]
[327250629,1715928635079,-168.3,0.00010093,2]
[327250630,1715928635088,-168.3,0.00010177,2]
[327250632,1715928635097,-841.6,0.00010245,2]
[327250634,1715928635108,-500.0,0.00010327,2]
[327250636,1715928635117,-500.0,0.00010327,2]
[327250638,1715928635126,-500.0,0.00010327,2]
[327250640,1715928635135,-500.0,0.00010327,2]
[327250642,1715928635145,-500.0,0.00010327,2]
[327250644,1715928635155,-500.0,0.00010327,2]
[327250646,1715928635164,-500.0,0.00010327,2]
[327250648,1715928635173,-500.0,0.00010327,2]
[327250650,1715928635183,-500.0,0.00010327,2]
[327250652,1715928635192,-500.0,0.00010327,2]
[327250654,1715928635201,-500.0,0.00010327,2]
[327250656,1715928635211,-500.0,0.00010327,2]
[327250658,1715928635220,-500.0,0.00010327,2]
[327250660,1715928635229,-100.12671932,0.00010327,2]
[327250961,1715928638398,-399.87328068,0.00010327,2]
[327250963,1715928638407,-500.0,0.00010327,2]
[327250965,1715928638417,-500.0,0.00010327,2]
[327250967,1715928638426,-500.0,0.00010327,2]
[327250968,1715928638436,-500.0,0.00010327,2]
[327250970,1715928638445,-500.0,0.00010327,2]
[327250972,1715928638454,-500.0,0.00010327,2]
[327250974,1715928638463,-500.0,0.00010327,2]
[327250976,1715928638474,-500.0,0.00010327,2]
[327250978,1715928638483,-500.0,0.00010327,2]
[327250980,1715928638492,-500.0,0.00010327,2]
[327250982,1715928638502,-462.64658843,0.00010327,2]
[327250984,1715928638514,-37.35341157,0.00010327,2]
[327250986,1715928638523,-500.0,0.00010327,2]
[327250988,1715928638533,-500.0,0.00010327,2]
[327250990,1715928638542,-500.0,0.00010327,2]
[327250992,1715928638551,-500.0,0.00010327,2]
[327250994,1715928638561,-500.0,0.00010327,2]
[327250995,1715928638570,-500.0,0.00010327,2]
[327250997,1715928638579,-500.0,0.00010327,2]
[327250999,1715928638589,-500.0,0.00010327,2]
[327251001,1715928638598,-500.0,0.00010327,2]
[327251003,1715928638609,-500.0,0.00010327,2]
[327251005,1715928638619,-500.0,0.00010327,2]
[327251007,1715928638629,-500.0,0.00010327,2]
[327251009,1715928638638,-500.0,0.00010327,2]
[327251011,1715928638647,-500.0,0.00010327,2]
[327251013,1715928638657,-500.0,0.00010327,2]
[327251014,1715928638666,-500.0,0.00010327,2]
[327251016,1715928638675,-500.0,0.00010327,2]
[327251018,1715928638684,-500.0,0.00010327,2]
[327251020,1715928638694,-500.0,0.00010327,2]
[327251022,1715928638703,-500.0,0.00010327,2]
[327251024,1715928638714,-500.0,0.00010327,2]
[327251026,1715928638723,-1926.25,0.00010455,2]
[327251028,1715928638732,-154.20842833,0.00010474,2]
[327251030,1715928638741,-154.20842833,0.00010536,2]
[327251032,1715928638750,-154.20842833,0.00010598,2]
[327251034,1715928638760,-693.87,0.0001063,15]
[327251036,1715928638770,-154.20842833,0.0001066,2]
[327251037,1715928638779,-154.20842833,0.00010721,2]
[327251039,1715928638788,-154.20842833,0.00010783,2]
[327251041,1715928638798,-189.48,0.00010795,2]
[327251043,1715928638807,-154.20842833,0.00010845,2]
[327251045,1715928638816,-263.21251245,0.00010846,2]
[327251047,1715928638825,-640.0,0.00010898,2]
[327251049,1715928638834,-154.20842833,0.00010907,2]
[327251051,1715928638844,-1349.85,0.00010959,2]
[327251053,1715928638853,-154.20842833,0.00010968,2]
[327251054,1715928638863,-150.0,0.00011,2]
[327251056,1715928638872,-154.20842833,0.0001103,2]
[327251058,1715928638882,-414.66,0.00011068,2]
[327251060,1715928638891,-170.78,0.00011068,2]
[327251062,1715928638901,-869.2,0.00011068,2]
[327251064,1715928638911,-415.3,0.00011068,2]
[327251066,1715928638920,-869.2,0.00011068,2]
[327251068,1715928638929,-154.20842833,0.00011092,2]
[327251070,1715928638939,-154.20842833,0.00011154,2]
[327251072,1715928638948,-311.54,0.00011165,2]
[327251074,1715928638958,-154.20842833,0.00011216,2]
[327251076,1715928638967,-154.20842833,0.00011277,2]
[327251077,1715928638976,-209.47895957,0.00011304,2]
[327251079,1715928638986,-154.09227675,0.00011325,2]
[327251081,1715928638995,-154.20842833,0.00011339,2]
[327251083,1715928639005,-678.94,0.0001137,2]
[327251085,1715928639014,-841.7,0.0001137,2]
[327251087,1715928639024,-154.20842833,0.00011401,2]
[327251089,1715928639033,-332.75841993,0.00011417,2]
[327251091,1715928639043,-268.16087153,0.00011417,2]
[327251093,1715928639053,-524.03766493,0.00011417,2]
[327251096,1715928639248,-1213.7455377,0.00011417,2]
[327251097,1715928639259,-225.64718461,0.00011418,2]
[327251098,1715928639268,-2000.0,0.00011419,2]
[327251100,1715928639278,-200.0,0.00011419,2]
[327251102,1715928639287,-1770.12134,0.00011419,2]
[327251104,1715928639297,-151.0,0.00011419,2]
[327251106,1715928639307,-151.0,0.00011419,2]
[327251108,1715928639316,-151.0,0.00011419,2]
[327251110,1715928639326,-155322.83338034,0.00011419,2]
[327251116,1715928639379,-915.90255493,0.00011419,2]
[327251118,1715928639391,-65979.06916993,0.00011419,2]
[327251120,1715928639403,-178448.67014247,0.00011419,2]
[327251122,1715928639414,-227343.58681822,0.00011419,2]
[327251127,1715928639444,-3168.81000003,0.00011419,2]
[327251256,1715928640648,-150.99,0.00010783,2]
[327251258,1715928640658,-505.06,0.00010959,2]
[327251278,1715928640826,-84.03,0.00010959,2]
[327251280,1715928640835,-151.0,0.00011419,2]
[327251282,1715928640845,-517.892333,0.00011419,2]
[327251284,1715928640855,-114037.5900313,0.00011419,2]
[327251286,1715928640865,-198.81179968,0.00011425,2]
[327251288,1715928640874,-841.6,0.00011525,2]
[327251290,1715928640883,-2000.0,0.00011533,2]
[327251292,1715928640892,-200.0,0.00011533,2]
[327251294,1715928640901,-2000.0,0.00011649,2]
[327251296,1715928640910,-200.0,0.00011649,2]
[327251298,1715928640920,-316.69,0.00011709,2]
[327251300,1715928640929,-637.29868216,0.000118,2]
[327251302,1715928640938,-364.438197,0.00011809,2]
[327251304,1715928640947,-158.084739,0.00011809,2]
[327251306,1715928640956,-166.373705,0.00011809,2]
[327251308,1715928640965,-166.469733,0.00011809,2]
[327251310,1715928640974,-165.215495,0.00011809,2]
[327251312,1715928640983,-1777.371832,0.00011809,2]
[327251314,1715928640992,-154.605048,0.00011809,2]
[327251316,1715928641001,-183.21489,0.00011809,2]
[327251318,1715928641010,-173.762642,0.00011809,2]
[327251320,1715928641019,-179.691526,0.00011809,2]
[327251322,1715928641028,-364.438197,0.00011957,2]
[327251324,1715928641037,-1777.371832,0.00011957,2]
[327251326,1715928641046,-189.48,0.00011994,2]
[327251328,1715928641055,-19626.96507151,0.00012,2]
[327251330,1715928641064,-707.61582151,0.00012,2]
[327251332,1715928641073,-1000.0,0.00012,2]
[327251334,1715928641082,-5000.0,0.00012,2]
[327251336,1715928641091,-151.689742,0.00012,2]
[327251338,1715928641100,-286.041481,0.00012,2]
[327251340,1715928641111,-151.0,0.00012,2]
[327251342,1715928641120,-151.0,0.00012,2]
[327251343,1715928641128,-233.267435,0.00012,2]
[327251345,1715928641137,-151.0,0.00012,2]
[327251347,1715928641147,-151.0,0.00012,2]
[327251349,1715928641159,-154.033062,0.00012,2]
[327251352,1715928641168,-151.0,0.00012,2]
[327251353,1715928641177,-151.0,0.00012,2]
[327251355,1715928641186,-151.0,0.00012,2]
[327251358,1715928641195,-151.0,0.00012,2]
[327251359,1715928641204,-151.0,0.00012,2]
[327251361,1715928641213,-179.691526,0.00012006,2]
[327251363,1715928641222,-833.57,0.00012055,2]
[327251365,1715928641231,-415.3,0.00012055,2]
[327251367,1715928641241,-830.6,0.00012055,2]
[327251369,1715928641250,-1427.55,0.00012055,2]
[327251371,1715928641259,-869.2,0.00012055,2]
[327251373,1715928641268,-830.6,0.00012055,2]
[327251375,1715928641278,-869.2,0.00012055,2]
[327251377,1715928641287,-869.2,0.00012055,2]
[327251379,1715928641296,-869.2,0.00012055,2]
[327251381,1715928641306,-183.21489,0.00012104,2]
[327251383,1715928641315,-364.438197,0.00012104,2]
[327251385,1715928641324,-1777.371832,0.00012104,2]
[327251387,1715928641335,-640.0,0.00012109,2]
[327251390,1715928641349,-413.05,0.00012192,2]
[327251391,1715928641360,-150.0,0.00012192,2]
[327251394,1715928641370,-351.62,0.00012192,2]
[327251396,1715928641381,-152.71,0.00012192,2]
[327251398,1715928641390,-305.79,0.00012192,2]
[327251400,1715928641399,-420.52,0.00012192,2]
[327251402,1715928641408,-582.0,0.00012192,2]
[327251404,1715928641417,-351.62,0.00012192,2]
[327251405,1715928641428,-418.31,0.00012192,2]
[327251407,1715928641438,-163.35,0.00012192,2]
[327251410,1715928641448,-523.76,0.00012192,2]
[327251411,1715928641458,-420.52,0.00012192,2]
[327251413,1715928641467,-351.62,0.00012192,2]
[327251416,1715928641478,-420.52,0.00012192,2]
[327251417,1715928641488,-523.76,0.00012192,2]
[327251419,1715928641497,-150.0,0.00012192,2]
[327251421,1715928641507,-351.62,0.00012192,2]
[327251423,1715928641516,-150.0,0.00012192,2]
[327251425,1715928641526,-420.52,0.00012192,2]
[327251427,1715928641535,-179.691526,0.00012203,2]
[327251429,1715928641543,-364.438197,0.00012252,2]
[327251431,1715928641553,-1777.371832,0.00012252,2]
[327251433,1715928641562,-3642.228,0.00012309,2]
[327251435,1715928641572,-819.21842121,0.00012327,2]
[327251437,1715928641582,-151.0,0.00012328,2]
[327251439,1715928641591,-505.27709108,0.00012328,2]
[327251441,1715928641601,-506.15503327,0.00012328,2]
[327251443,1715928641612,-524.36817314,0.00012328,2]
[327251445,1715928641621,-506.53314892,0.00012328,2]
[327251447,1715928641631,-500.0,0.00012328,2]
[327251449,1715928641640,-597.43691505,0.00012328,2]
[327251451,1715928641650,-506.81735833,0.00012328,2]
[327251453,1715928641659,-500.0,0.00012328,2]
[327251455,1715928641668,-500.0,0.00012328,2]
[327251457,1715928641677,-500.0,0.00012328,2]
[327251459,1715928641687,-500.0,0.00012328,2]
[327251461,1715928641696,-517.9570066,0.00012328,2]
[327251463,1715928641705,-484.83190232,0.00012328,2]
[327251465,1715928641715,-508.94523809,0.00012328,2]
[327251467,1715928641724,-525.12364592,0.00012328,2]
[327251469,1715928641734,-500.0,0.00012328,2]
[327251471,1715928641743,-261.18788992,0.00012328,2]
[327251473,1715928641753,-500.0,0.00012328,2]
[327251475,1715928641763,-514.71622382,0.00012328,2]
[327251477,1715928641772,-500.0,0.00012328,2]
[327251479,1715928641782,-500.0,0.00012328,2]
[327251481,1715928641791,-489.399232,0.00012328,2]
[327251483,1715928641800,-151.0,0.00012328,2]
[327251485,1715928641809,-155.782592,0.00012328,2]
[327251487,1715928641819,-500.0,0.00012328,2]
[327251489,1715928641828,-500.0,0.00012328,2]
[327251491,1715928641837,-509.912779,0.00012328,2]
[327251493,1715928641847,-544.8485462,0.00012328,2]
[327251495,1715928641856,-500.0,0.00012328,2]
[327251497,1715928641866,-151.0,0.00012328,2]
[327251499,1715928641875,-151.0,0.00012328,2]
[327251501,1715928641884,-151.0,0.00012328,2]
[327251503,1715928641894,-151.0,0.00012328,2]
[327251505,1715928641904,-500.0,0.00012328,2]
[327251507,1715928641913,-500.0,0.00012328,2]
[327251509,1715928641922,-500.0,0.00012328,2]
[327251511,1715928641931,-513.69236377,0.00012328,2]
[327251512,1715928641940,-151.0,0.00012328,2]
[327251515,1715928641950,-151.0,0.00012328,2]
[327251517,1715928641960,-151.0,0.00012328,2]
[327251519,1715928641969,-384.07205426,0.00012328,2]
[327251520,1715928641979,-163.253945,0.00012328,2]
[327251522,1715928641988,-506.30789549,0.00012328,2]
[327251524,1715928641997,-500.0,0.00012328,2]
[327251526,1715928642006,-514.87728451,0.00012328,2]
[327251528,1715928642016,-539.9563665,0.00012328,2]
[327251531,1715928642028,-500.0,0.00012328,2]
[327251533,1715928642037,-500.0,0.00012328,2]
[327251535,1715928642046,-500.0,0.00012328,2]
[327251536,1715928642055,-509.69952329,0.00012328,2]
[327251538,1715928642065,-522.44049054,0.00012328,2]
[327251540,1715928642074,-500.0,0.00012328,2]
[327251542,1715928642084,-429.87398674,0.00012328,2]
[327251544,1715928642093,-596.30557283,0.00012328,2]
[327251546,1715928642102,-503.65235932,0.00012328,2]
[327251549,1715928642113,-500.0,0.00012328,2]
[327251550,1715928642122,-205.51533448,0.00012328,2]
[327251553,1715928642134,-505.65025074,0.00012328,2]
[327251555,1715928642144,-500.0,0.00012328,2]
[327251556,1715928642153,-500.0,0.00012328,2]
[327251559,1715928642162,-507.0145073,0.00012328,2]
[327251561,1715928642171,-509.43154633,0.00012328,2]
[327251562,1715928642181,-500.0,0.00012328,2]
[327251564,1715928642190,-504.4978149,0.00012328,2]
[327251566,1715928642199,-210.77469739,0.00012328,2]
[327251568,1715928642208,-500.0,0.00012328,2]
[327251569,1715928642217,-500.0,0.00012328,2]
[327251570,1715928642225,-500.0,0.00012328,2]
[327251571,1715928642234,-571.82518442,0.00012328,2]
[327251572,1715928642243,-500.0,0.00012328,2]
[327251573,1715928642252,-500.0,0.00012328,2]
[327251574,1715928642261,-500.0,0.00012328,2]
[327251575,1715928642270,-500.0,0.00012328,2]
[327251576,1715928642278,-500.0,0.00012328,2]
[327251577,1715928642288,-500.0,0.00012328,2]
[327251578,1715928642297,-500.0,0.00012328,2]
[327251579,1715928642307,-362.45874486,0.00012328,2]
[327251662,1715928643120,-151.0,0.00011419,2]
[327251664,1715928643129,-517.892333,0.00012,2]
[327251666,1715928643139,-137.54125514,0.00012328,2]
[327251668,1715928643148,-407.15692684,0.00012328,2]
[327251670,1715928643161,-92.84307316,0.00012328,2]
[327251672,1715928643170,-304.48,0.00012328,2]
[327251675,1715928643179,-151.0,0.00012328,2]
[327251679,1715928643188,-413.19568378,0.00012328,2]
[327251701,1715928643327,-151.0,0.00012,2]
[327251706,1715928643337,-91.79389794,0.00012328,2]
[327251710,1715928643351,-151.0,0.00012328,2]
[327251714,1715928643361,-91.46325926,0.00012328,2]
[327251771,1715928643734,-118.71161774,0.00012328,2]
[327251773,1715928643744,-500.0,0.00012328,2]
[327251775,1715928643753,-500.0,0.00012328,2]
[327251777,1715928643762,-514.02035777,0.00012328,2]
[327251779,1715928643771,-500.0,0.00012328,2]
[327251781,1715928643780,-500.0,0.00012328,2]
[327251783,1715928643789,-500.0,0.00012328,2]
[327251785,1715928643799,-445.9221562,0.00012328,2]
[327251787,1715928643808,-506.20231943,0.00012328,2]
[327252024,1715928646212,-324.92839964,0.00011419,2]
[327252025,1715928646393,-192.96393336,0.00011419,2]
[327252026,1715928646403,-517.892333,0.00012,2]
[327252027,1715928646414,-12.7587296,0.00012328,2]
[327252028,1715928646423,-460.32821871,0.00012328,2]
[327252030,1715928646433,-253.334053,0.00012328,2]
[327252032,1715928646443,-508.53578441,0.00012328,2]
[327252034,1715928646452,-500.0,0.00012328,2]
[327252036,1715928646462,-506.82978412,0.00012328,2]
[327252038,1715928646471,-500.0,0.00012328,2]
[327252040,1715928646480,-500.0,0.00012328,2]
[327252042,1715928646489,-334.78338898,0.00012328,2]
[327252044,1715928646501,-165.21661102,0.00012328,2]
[327252046,1715928646511,-500.0,0.00012328,2]
[327252048,1715928646521,-350.62586872,0.00012328,2]
[327252050,1715928646532,-149.37413128,0.00012328,2]
[327252053,1715928646542,-500.0,0.00012328,2]
[327252054,1715928646552,-272.7466072,0.00012328,2]
[327252058,1715928646578,-227.2533928,0.00012328,2]
[327252060,1715928646588,-297.49163136,0.00012328,2]
[327252062,1715928646599,-202.50836864,0.00012328,2]
[327252064,1715928646609,-500.0,0.00012328,2]
[327252066,1715928646619,-376.12440358,0.00012328,2]
[327252068,1715928646629,-616.32002226,0.00012328,2]
[327252070,1715928646638,-534.73135995,0.00012328,2]
[327252072,1715928646648,-528.51968822,0.00012328,2]
[327252074,1715928646658,-573.04562279,0.00012328,2]
[327252076,1715928646667,-500.0,0.00012328,2]
[327252078,1715928646677,-500.0,0.00012328,2]
[327252080,1715928646686,-560.355,0.00012328,2]
[327252082,1715928646696,-500.0,0.00012328,2]
[327252084,1715928646705,-500.0,0.00012328,2]
[327252086,1715928646715,-500.0,0.00012328,2]
[327252088,1715928646725,-510.46116165,0.00012328,2]
[327252090,1715928646734,-550.63969537,0.00012328,2]
[327252092,1715928646744,-500.0,0.00012328,2]
[327252094,1715928646754,-190.72713567,0.00012328,2]
[327252096,1715928646764,-500.0,0.00012328,2]
[327252098,1715928646773,-506.91726697,0.00012328,2]
[327252100,1715928646783,-500.0,0.00012328,2]
[327252102,1715928646792,-500.0,0.00012328,2]
[327252104,1715928646802,-500.0,0.00012328,2]
[327252106,1715928646811,-500.0,0.00012328,2]
[327252108,1715928646820,-500.0,0.00012328,2]
[327252110,1715928646829,-500.0,0.00012328,2]
[327252112,1715928646839,-500.0,0.00012328,2]
[327252114,1715928646848,-178.80010884,0.00012328,2]
[327252116,1715928646857,-500.0,0.00012328,2]
[327252118,1715928646868,-228.21090073,0.00012328,2]
[327252120,1715928646878,-500.0,0.00012328,2]
[327252122,1715928646887,-405.25821017,0.00012328,2]
[327252125,1715928646899,-94.74178983,0.00012328,2]
[327252126,1715928646909,-309.25821017,0.00012328,2]
[327252129,1715928646920,-190.74178983,0.00012328,2]
[327252131,1715928646929,-507.04802054,0.00012328,2]
[327252133,1715928646938,-176.54552337,0.00012328,2]
[327252135,1715928646949,-339.1815543,0.00012328,2]
[327252141,1715928647129,-20.66999474,0.00012328,2]
[327252142,1715928647142,-316.53726453,0.00012328,2]
[327252231,1715928649072,1099.7743066,8.219e-05,2]
[327252232,1715928696785,292.26886953,8.219e-05,2]
[327252233,1715928718905,292.26886953,8.219e-05,2]
[327252234,1715928736790,292.26886953,8.219e-05,2]
[327252235,1715928746029,560.68534116,8.219e-05,2]
[327252236,1715928754780,292.26886953,8.219e-05,2]
[327252237,1715928768034,560.68534116,8.219e-05,2]
[327252238,1715928777813,292.26886953,8.219e-05,2]
[327252239,1715928790348,560.7283452,8.219e-05,2]
[327252240,1715928800796,292.26886953,8.219e-05,2]
[327252241,1715928806033,637.13634522,8.219e-05,2]
[327252242,1715928818799,292.26886953,8.219e-05,2]
[327252243,1715928826047,593.45465561,8.219e-05,2]
[327252244,1715928837762,292.26886953,8.219e-05,2]
[327252245,1715928838628,948.48875066,8.219e-05,2]
[327252246,1715928844050,560.7283452,8.219e-05,2]
[327252247,1715928854811,292.26886953,8.219e-05,2]
[327252248,1715928861855,1285.20152074,6.164e-05,2]
[327252249,1715928865077,1273.8112192,8.219e-05,2]
[327252250,1715928866093,560.64233712,8.219e-05,2]
[327252251,1715928870818,174.31609854,8.219e-05,2]
[327252252,1715928909878,2546.90772083,6.164e-05,2]
[327252253,1715928910076,19724.89885095,8.219e-05,2]
[327252254,1715928924067,2278.72268427,8.219e-05,2]
[327252255,1715928941843,2546.90772083,6.164e-05,2]
[327252259,1715928957984,7516.64268761,8.219e-05,2]
[327252260,1715928975109,7516.64268761,8.219e-05,2]
[327252261,1715928989417,9885.46899419,8.219e-05,2]
[327252262,1715928991111,7516.64268761,8.219e-05,2]
[327252263,1715929009420,20213.93210664,8.219e-05,2]
[327252264,1715929013110,5500.22297547,8.219e-05,2]